Cogmind - Beta 14 @@@ ROGUE MODE // 2024.12.29 @ 00:32:44 Player: Golinth Result: Self-destructed Performance ------------- Evolutions (2) 1000 Regions Visited (3) 600 Robots Destroyed (53) 265 Value Destroyed (984) 984 Prototype IDs (3) 60 Alien Tech Used (0) 0 Bonus (0) 0 TOTAL SCORE: 2909 Bonus ------- None Cogmind --------- Core Integrity 353/550 Matter 300/300 Energy 272/280 System Corruption 6% Temperature Critical (612) Movement Core (350) Ox6 Location -8/Materials Parts ------- > --- POWER (2) -------- Heavy Ion Engine > --- PROPULSION (3) --- (None) > --- UTILITY (4) ------ Small Storage Unit > --- WEAPON (2) ------- Advanced Beam Rifle Heavy Particle Cannon > --- INVENTORY (8) ---- Deuterium Engine Advanced Targeting Computer Particle Cannon Advanced Beam Cannon Advanced Beam Cannon Peak State ------------ > --- POWER ------------ Heavy Ion Engine Heavy Ion Engine > --- PROPULSION ------- Compact Wheel Compact Wheel Armored Wheel > --- UTILITY ---------- Cooling System Small Storage Unit Improved Targeting Computer Particle Charger > --- WEAPON ----------- Advanced Beam Rifle Advanced Beam Cannon > --- INVENTORY -------- Deuterium Engine Wheel Wheel Improved Signal Interpreter Particle Cannon Advanced Beam Cannon Advanced Beam Cannon [Rating: 26] Favorites ----------- Power Ion Engine Engine Ion Engine Propulsion Wheel Wheel Wheel Utility Small Storage Unit Device Improved Terrain Scanner Storage Small Storage Unit Processor Improved Signal Interpreter Weapon Advanced Beam Cannon Energy Gun Medium Laser Energy Cannon Advanced Beam Cannon Build | -11 -10 -9 -8 ------- Run | Yrd Mat Mat Mat Slots Evolved 4 | . . 2 2 Power 1 | . . . 1 Propulsion 1 | . . 1 . Utility 2 | . . 1 1 Weapon . | . . . . Parts Attached 37 | 7 9 9 12 Power 6 | 1 2 2 1 Engine 6 | 1 2 2 1 Core . | . . . . Reactor . | . . . . Propulsion 11 | 2 2 4 3 Treads . | . . . . Leg . | . . . . Wheel 11 | 2 2 4 3 Hover . | . . . . Flight . | . . . . Utility 8 | 2 . 2 4 Device 4 | 1 . 2 1 Storage 1 | 1 . . . Processor 3 | . . . 3 Hackware . | . . . . Protection . | . . . . Artifact . | . . . . Weapon 12 | 2 5 1 4 Energy Gun 6 | 2 2 . 2 Energy Cannon 6 | . 3 1 2 Ballistic Gun . | . . . . Ballistic Cannon . | . . . . Launcher . | . . . . Special Weapon . | . . . . Impact Weapon . | . . . . Slashing Weapon . | . . . . Piercing Weapon . | . . . . Special Melee Weapon . | . . . . Unidentified Prototypes 3 | . 1 1 1 Parts Lost 14 | . . . 14 Power 1 | . . . 1 Propulsion 6 | . . . 6 Utility 5 | . . . 5 Weapon 2 | . . . 2 Highest Loss Streak 9 | . . . 9 To Critical Strikes . | . . . . Average Slot Usage (%) 98 | . 100 99 96 Engine 13 | . 14 11 18 Wheel 29 | . 28 33 24 Device 16 | . 14 22 10 Storage 11 | . 14 11 9 Processor 3 | . . . 15 Energy Gun 11 | . 27 . 3 Energy Cannon 11 | . . 21 14 Peak Build Rating 26 | 9 14 20 26 Average Rating 14 | 8 10 18 24 On Entrance 10 | . 9 14 20 Naked Turns . | . . . . Heaviest Build 34 | 15 17 27 34 Greatest Support 48 | 20 26 48 44 Greatest Overweight (x) 1 | . . . 1 Average Overweight (x) . | . . . . Largest Inventory Capacity 8 | 8 8 8 8 Average Capacity 7 | 7 8 8 8 Most Carried 8 | 7 8 8 7 Average Carried 6 | 2 7 7 6 Final Capacity 8 | 8 8 8 8 Final Carried 8 | 7 8 8 5 Class Distribution -------------------- 83% | Mutant 16% | Scavenger-Mutant Dominant Class ---------------- Mutant | -10/Materials Mutant | -9/Materials Mutant | -8/Materials Resources | -11 -10 -9 -8 ----------- Run | Yrd Mat Mat Mat Matter Collected 510 | 270 50 130 60 Remotely . | . . . . Salvage Created 1693 | 310 267 781 335 Parts 119 | 33 17 55 14 Haulers Intercepted 2 | . . 1 1 Recyclers Shooed 2 | . 2 . . Parts Field Recycled . | . . . . Retrieved Matter . | . . . . Parts Self-Destructed . | . . . . Prevented . | . . . . Kills | -11 -10 -9 -8 ------- Run | Yrd Mat Mat Mat Combat Hostiles Destroyed 28 | . 7 17 4 Guns 8 | . 6 . 2 Cannons 19 | . . 17 2 Classes Destroyed 10 | 3 3 3 1 Worker 5 | 4 . . 1 Builder 1 | . . . 1 Tunneler 9 | 9 . . . Hauler 2 | . . 1 1 Recycler 4 | 1 1 2 . Operator 1 | . . 1 . Watcher 3 | . 1 2 . Swarmer 10 | . 3 7 . Grunt 13 | . 4 7 2 Sentry 5 | . . 3 2 Best Kill Streak 5 | 4 3 5 2 Combat Bots Only 4 | . 3 4 2 Max Kills in Single Turn 1 | 1 1 1 1 Gunslinging . | . . . . Exploded . | . . . . Melee . | . . . . Uniques/NPCs Destroyed . | . . . . Combat | -11 -10 -9 -8 -------- Run | Yrd Mat Mat Mat Hostile Shots Fired 168 | . 32 53 83 Missed 38 | . 6 14 18 Damage Taken 1730 | . 244 389 1097 Core 319 | . 66 56 197 Absorbed by Shields . | . . . . Regen/Repaired (Parts) 101 | . . 101 . Core Remaining (%) 86 | 100 73 86 . Volleys Fired 138 | 34 26 39 39 Largest 2 | 2 2 2 2 Hottest 143 | 100 130 136 143 Shots Fired 274 | 68 52 78 76 Gun 137 | 68 52 . 17 Cannon 137 | . . 78 59 Launcher . | . . . . Special . | . . . . Kinetic . | . . . . Thermal 274 | 68 52 78 76 Explosive . | . . . . Electromagnetic . | . . . . Robot Hit Streak 13 | 9 3 13 13 Robot Miss Streak 4 | 3 3 3 4 Penetration Max . | . . . . Secondary Targets 1 | . 1 . . Max Gunslinging Chain 1 | . 1 . . Shots Hit Robots 162 | 38 28 47 49 Core Hits 62 | 13 12 24 13 Critical Kills . | . . . . Critical Parts Destroyed . | . . . . Critical Strikes 10 | 6 3 . 1 Burn 10 | 6 3 . 1 Melee Attacks . | . . . . Impact . | . . . . Slashing . | . . . . Piercing . | . . . . Sneak Attacks . | . . . . Combat Hostiles . | . . . . Follow-up Attacks . | . . . . Damage Inflicted 2987 | 486 397 1042 1062 Guns 1164 | 486 397 . 281 Cannons 1823 | . . 1042 781 Explosions . | . . . . Melee . | . . . . Ramming . | . . . . Kinetic . | . . . . Thermal 2987 | 486 397 1042 1062 Explosive . | . . . . Electromagnetic . | . . . . Impact . | . . . . Slashing . | . . . . Piercing . | . . . . Highest Corruption 6 | . . . 6 Average Corruption 6 | . . . 6 Corruption Purged . | . . . . Corruption Blocked . | . . . . Overload Shots . | . . . . Overflow Damage 45 | . . 10 35 Projectiles 45 | . . 10 35 Explosions . | . . . . Melee . | . . . . Knockbacks . | . . . . Impact . | . . . . Kinetic . | . . . . Secondary . | . . . . Self-Inflicted Damage . | . . . . Shots . | . . . . Rammed . | . . . . Targets Rammed . | . . . . Kicked . | . . . . Crushed . | . . . . Highest Temperature 603 | 312 432 75 603 Average Temperature 119 | 92 149 23 157 Received Heat Transfer 720 | . 72 99 549 Effects 18 | 3 2 . 13 Shutdowns 2 | . . . 2 Interference 11 | 3 2 . 6 Damage (minor) 1 | . . . 1 Damage (major) 3 | . . . 3 Damage (core) 1 | . . . 1 Siege Activations . | . . . . Robots Corrupted . | . . . . Combat Hostiles . | . . . . Parts Fried . | . . . . Impact Corruptions . | . . . . Robots Melted 3 | 2 1 . . Combat Hostiles 1 | . 1 . . Parts Melted 16 | 4 4 5 3 Heat Transferred 6808 | 1887 1258 1776 1887 Parts Sabotaged . | . . . . Parts Stolen . | . . . . Parts Stripped . | . . . . Power Chain Reactions . | . . . . Alert | -11 -10 -9 -8 ------- Run | Yrd Mat Mat Mat Peak Influence 323 | 70 133 323 222 Initial 68 | . . . 68 Average 82 | 16 53 153 134 Maximum Alert Level 1 | . . 1 1 Low Security (%) 90 | 100 100 75 79 Level 1 9 | . . 24 20 Level 2 . | . . . . Level 3 . | . . . . Level 4 . | . . . . Level 5 . | . . . . High Security . | . . . . Max Security . | . . . . Squads Dispatched 7 | . 4 2 1 Investigation 4 | . 3 1 . Extermination . | . . . . Reinforcement 3 | . 1 1 1 Assault . | . . . . Garrison . | . . . . Intercept . | . . . . Searches Triggered . | . . . . Construction Impeded . | . . . . Haulers Reinforced . | . . . . Active Scanning Responses . | . . . . Cargo Convoy Interrupts . | . . . . Stealth | -11 -10 -9 -8 --------- Run | Yrd Mat Mat Mat Distress Signals 3 | . 1 2 . Communications Jammed . | . . . . Distress Signals . | . . . . Times Spotted 45 | . 10 21 14 Peak Tracking Total 6 | . 3 6 6 Tactical Retreats 3 | . . . 3 Traps | -11 -10 -9 -8 ------- Run | Yrd Mat Mat Mat Traps Triggered . | . . . . Indirectly . | . . . . Trap Hack Attempts . | . . . . Triggered . | . . . . Disarmed . | . . . . Reprogrammed . | . . . . Reused . | . . . . Traps Extracted . | . . . . Installed . | . . . . Triggered . | . . . . Machines | -11 -10 -9 -8 ---------- Run | Yrd Mat Mat Mat Machines Disabled 1 | . . . 1 Max in Single Turn 1 | . . . 1 Machines Repaired . | . . . . Machines Dismantled . | . . . . Machines Sabotaged . | . . . . Overloaded Fab Kills . | . . . . Hacking | -11 -10 -9 -8 --------- Run | Yrd Mat Mat Mat Machines Accessed 15 | . 5 8 2 Terminals 8 | . 4 4 . Fabricators . | . . . . Repair Stations 1 | . . 1 . Recycling Units 5 | . 1 2 2 Scanalyzers 1 | . . 1 . Garrison Access . | . . . . Total Hacks 51 | . 19 27 5 Successful 33 | . 8 21 4 Failed 18 | . 11 6 1 Catastrophic 1 | . 1 . . Database Lockouts . | . . . . Manual 43 | . 19 19 5 Terminals 27 | . 16 11 . Fabricators . | . . . . Repair Stations 5 | . . 5 . Recycling Units 16 | . 3 8 5 Scanalyzers 3 | . . 3 . Garrison Access . | . . . . Terminal Hacks 1 | . . 1 . Locate Traps 1 | . . 1 . Fabricator Hacks . | . . . . Repair Station Hacks 3 | . . 3 . Scan Component 2 | . . 2 . Repair 1 | . . 1 . Recycling Unit Hacks 1 | . . 1 . Retrieve Components 1 | . . 1 . Scanalyzer 2 | . . 2 . Insert Component 1 | . . 1 . Analyze 1 | . . 1 . Garrison Access Hacks . | . . . . Unauthorized Hacks 26 | . 8 14 4 Terminals 15 | . 6 9 . Track 7 | . 3 4 . Assimilate 3 | . 2 1 . Botnet 5 | . 1 4 . Fabricators . | . . . . Repair Stations . | . . . . Recycling Units 10 | . 2 4 4 Reject 5 | . 1 2 2 Recyclers 5 | . 1 2 2 Scanalyzers 1 | . . 1 . Researchers 1 | . . 1 . Garrison Access . | . . . . Data Cores Recovered . | . . . . Used . | . . . . Hacking Detections 12 | . 4 7 1 Full Trace Events 6 | . 3 2 1 Feedback Events . | . . . . Feedback Blocked . | . . . . Robot Schematics Acquired . | . . . . Robots Built . | . . . . Authchips . | . . . . Time . | . . . . Total Robot Build Rating . | . . . . Part Schematics Acquired 1 | . . 1 . Parts Built . | . . . . Authchips . | . . . . Time . | . . . . Total Part Build Rating . | . . . . Parts Repaired 1 | . . 1 . Time 51 | . . 51 . Parts Recycled . | . . . . Recycled Matter . | . . . . Retrieved Matter . | . . . . Retrieved Components 10 | . . 10 . Parts Scanalyzed 1 | . . 1 . Part Schematics Acquired 1 | . . 1 . Parts Damaged . | . . . . Bothacking | -11 -10 -9 -8 ------------ Run | Yrd Mat Mat Mat Used RIF Installer . | . . . . Robots Hacked . | . . . . Non-combat . | . . . . Combat . | . . . . Robot Hacks Applied . | . . . . Relay Couplers Released . | . . . . Fabnet Peak Effective % . | . . . . Robots Rewired . | . . . . Allies Hacked . | . . . . Hacks Repelled . | . . . . Allies | -11 -10 -9 -8 -------- Run | Yrd Mat Mat Mat Total Allies . | . . . . Largest Group . | . . . . Highest-Rated Group . | . . . . Highest-Rated Ally . | . . . . Total Orders . | . . . . Ally Attacks . | . . . . Total Damage . | . . . . Kills . | . . . . Allies Corrupted . | . . . . Allies Melted . | . . . . Intel | -11 -10 -9 -8 ------- Run | Yrd Mat Mat Mat Robot Analysis Total . | . . . . Derelict Logs Recovered . | . . . . Drone Launches . | . . . . Drone Recoveries . | . . . . Exploration | -11 -10 -9 -8 ------------- Run | Yrd Mat Mat Mat Turns Passed 3033 | 901 830 831 471 Spaces Moved 1396 | 220 292 564 320 Core 10 | 10 . . . Treads . | . . . . Legs . | . . . . Wheels 1386 | 210 292 564 320 Hover . | . . . . Flight . | . . . . Fastest Speed 50 | 50 80 86 80 Average Speed 89 | 78 86 94 88 Slowest Speed 110 | 80 90 100 110 Overloaded Moves . | . . . . Propulsion Burnouts . | . . . . Robots Hopped . | . . . . Cave-ins Triggered . | . . . . Exploration Rate (%) 33 | 7 47 48 30 Regions Visited 3 Branch Regions . Pre-discovered Areas . | . . . . Known Exits Taken . | . . . . Unknown Exits Taken 3 | 1 1 1 . Scrap Searched . | . . . . Spaces Dug . | . . . . Terrain Destroyed 14 | . . 6 8 Melee . | . . . . Projectile 14 | . . 6 8 AOE . | . . . . Terrain Rammed . | . . . . Walls Destroyed . | . . . . Machines Disabled . | . . . . Actions | -11 -10 -9 -8 --------- Run | Yrd Mat Mat Mat Total 2913 | 879 819 786 429 Wait 1280 | 605 472 154 49 Move 1393 | 219 291 563 320 Hop . | . . . . Pick Up 45 | 14 11 12 8 Fast Attach . | . . . . Attach 21 | 7 2 3 9 Detach . | . . . . Swap 16 | . 7 6 3 Drop 20 | . 10 9 1 Fire 138 | 34 26 39 39 Melee . | . . . . Ram . | . . . . Kick . | . . . . Crush . | . . . . Escape Stasis . | . . . . Rewire . | . . . . Trap . | . . . . Miscellaneous . | . . . . Route ------- -11/Scrapyard -10/Materials (discovered 3 exits: *Mat x2 / [Sub]) -9/Materials (discovered 2 exits: *Mat / [*Min]) -8/Materials History --------- Turn | Location | Event 7 | -11/Scrapyard | Discovered new exit (range 15) 902 | -11/Scrapyard | Entered Materials 903 | -10/Materials | Build established: Mutant 998 | -10/Materials | Discovered new exit (range 15) 1103 | -10/Materials | Discovered new exit (range 5) 1156 | -10/Materials | Discovered new exit (range 15) 1732 | -10/Materials | Entered another Materials area 1732 | -9/Materials | Evolved 2 slots: Propulsion x1, Utility x1 1994 | -9/Materials | Discovered new exit (range 7) 2001 | -9/Materials | Build established: Scavenger-Mutant 2369 | -9/Materials | Build established: Mutant 2411 | -9/Materials | Repaired Adv. Beam Cannon 2550 | -9/Materials | Discovered new exit (range 15) 2563 | -9/Materials | Entered another Materials area 2563 | -8/Materials | Evolved 2 slots: Power x1, Utility x1 2732 | -8/Materials | Lost 4 parts (2n2u) 3034 | -8/Materials | Self-destructed Last Messages --------------- 03027_ Overheating: Hvy. Particle Cannon damaged (-42). 03027_ Overheating: Imp. Signal Interpreter damaged (-7). 03027_ K-01 Serf collects debris. 03028_ Overheating: Adv. Targeting Computer damaged (-13). 03028_ Adv. Beam Cannon destroyed. 03029_ B-36 Bruiser suffers critical hit (Burn). 03030_ Overheating: System interference. 03030_ Adv. Beam Rifle temporarily disabled. 03030_ Hvy. Ion Engine destroyed. 03030_ R-06 Scavenger collects Heat Sink. 03032_ Power failure, Hvy. Ion Engine shutdown. 03032_ Imp. Signal Interpreter destroyed. 03032_ Adv. Targeting Computer destroyed. 03032_ System corrupted by crushing effect (+1). 03032_ System corrupted by crushing effect (+5). 03033_ Overheating: System interference. 03033_ Hvy. Particle Cannon temporarily disabled. 03033_ U-05 Engineer builds a Wall. 03034_ Overheating: Core damaged (-60). 03034_ Wheel destroyed. Map ----- +----------------------------------------------------+ | ????????????####### #### #???######### # | | ????? #???#//! ## # | | ????????????#######+### #???#/!! ## # "" | | ???????????????# # #???#/!! ## + "" | | ???????????????# """ # #???# [ ## # "" | | ???????????????# """ # #???# ## # | | ???????????????# """ # #????? =## #### | | ???????????????# # ########+### ### | | ???????????????# """ # | | ???????????????# """ + | | ???????????????# """ # | | ???????????????# # ###+########## ### | | ???????????????# """ # ##### ???????######## | | ???????????????# """ # #???#! !#????????????# | | ???????????????# """ # #???# #????????????# | | ???????????????# # #???# #????????????# | | ????????????????####### #???# ]#????????????# | | ??????????????????????#!#???# #????????????# | | ??????????????????????#%###?# #????????????## | | ????????????????????#*#%##########?????????????? | | "R??#################!# [ !=#?????????????????? | | " " # # ! ##????????????????? | | + # r ##????????????????? | | != # Y#k uu#?????????????????? | | ]= ??############### ggbu[ #?????????????????? | | =??????????????????# #@ !#?????????????????? | | ????????????????????# ########?????????????????? | | ????????????????????# ???????????????????????? | | ????????????????????# ??????????????????????? | | ???????????????????? """ ?????????????????????? | | ???r??????????????? """ ????????????????????? | | ??????????????????### """ ???????????????????? | | ????????????????????# """ ??????????????????? | | ????????????????????# ??? ! ?????????????????? | | ????????????????????# ????? ?????????????????? | | ???????????????????? ?????? ??????????????????? | | ???????????????????? ?????????????????????????? | | ???????????????????? ?????????????????????????? | | ????????????????????+###?????????????????????????? | | ?????????????????????????????????????????????????? | | ?????????????????????????????????????????????????? | | ?????????????????????????????????????????????????? | | ?????????????????????????????????????????????????? | | ?????????????????????????????????????????????????? | | ?????????????????????????????????????????????????? | | ?????????????????????????????????????????????????? | | ?????????????????????????????????????????????????? | | ?????????????????????????????????????????????????? | | ?????????????????????????????????????????????????? | | ?????????????????????????????????????????????????? | +----------------------------------------------------+ Best States ------------- Heat Dissipation 53 Energy Generation 23 Energy Capacity 460 Matter Stores 300 Matter Capacity 300 Sight Range 16 Terrain Scan Range 16 Terrain Scan Density 10 Evasion (%) 50 Targeting Accuracy 8 Particle Charging 15 Item Schematics ----------------- Adv. Beam Cannon | -9/Materials | Scanalyzed Robot Schematics ------------------ None Fabricated ------------ Nothing Alien Tech Used ----------------- None Achievements -------------- None Challenges ------------ None Game ------ Seed GrenadeFactoryDetector Manual? 0 Play Time 00:27:58 Cumulative 12.0 hours Start 2024.12.29 @ 00:05:46 End 2024.12.29 @ 00:32:44 Sessions 1 Manual Loads 0 Difficulty Rogue Special Mode None Game No. 23 Rogue 16 Adventurer 7 Explorer 0 Win Type - Total 0 Types 0/0/0/0/0/0/0/0/0 Lore% 6 Gallery% 19 Achievement% 17 Wizard Run 0 Options --------- Layout 0 ASCII 0 Keyboard 0 Movement Mouse Keybinds 0 Fullscreen 1 Font 24/Smallcaps Map View 76x50 Zoom Use 0% Tactical HUD 1 Map Filters NONE Filters NONE Steam 1 RUN: 6783e03b-18f2-4bfc-bb5f-6e1b9aa8cf74